fUST/lending_fUST_20250119
["ID","MTS","AMOUNT","RATE_DAILY","PERIOD"]
[349513691,1737261041223,-500.0,0.00021917,3]
[349513692,1737261041232,-605.8,0.00021917,3]
[349513693,1737261041241,-500.0,0.00021917,3]
[349513694,1737261041250,-500.0,0.00021917,3]
[349513695,1737261041259,-500.0,0.00021917,3]
[349513696,1737261041268,-500.0,0.00021917,3]
[349513697,1737261041277,-500.0,0.00021917,3]
[349513698,1737261041287,-500.0,0.00021917,3]
[349513699,1737261041296,-500.0,0.00021917,3]
[349513700,1737261041308,-437.8,0.00021917,3]
[349513701,1737261041317,-500.0,0.00021917,3]
[349513702,1737261041327,-500.0,0.00021917,3]
[349513703,1737261041336,-500.0,0.00021917,3]
[349513704,1737261041345,-500.0,0.00021917,3]
[349513705,1737261041354,-500.0,0.00021917,3]
[349513706,1737261041363,-500.0,0.00021917,3]
[349513707,1737261041373,-500.0,0.00021917,3]
[349513708,1737261041382,-1313.31,0.00021917,3]
[349513709,1737261041395,-500.0,0.00021917,3]
[349513710,1737261041405,-251.85555499,0.00021917,3]
[349513711,1737261041418,-531.81,0.00021917,3]
[349513712,1737261041427,-500.0,0.00021917,3]
[349513713,1737261041438,-541.29881703,0.00021917,3]
[349513714,1737261041447,-500.0,0.00021917,3]
[349513715,1737261041456,-684.72,0.00021917,3]
[349513716,1737261041466,-500.0,0.00021917,3]
[349513717,1737261041476,-2058.98,0.00021917,3]
[349513718,1737261041485,-349.65140026,0.00021917,3]
[349513719,1737261041495,-500.0,0.00021917,3]
[349513720,1737261041504,-500.0,0.00021917,3]
[349513721,1737261041513,-500.0,0.00021917,3]
[349513722,1737261041522,-500.0,0.00021917,3]
[349513723,1737261041532,-500.0,0.00021917,3]
[349513724,1737261041541,-500.0,0.00021917,3]
[349513725,1737261041550,-500.0,0.00021917,3]
[349513726,1737261041559,-500.0,0.00021917,3]
[349513727,1737261041569,-500.0,0.00021917,3]
[349513728,1737261041578,-500.0,0.00021917,3]
[349513729,1737261041587,-500.0,0.00021917,3]
[349513730,1737261041596,-500.0,0.00021917,3]
[349513731,1737261041605,-500.0,0.00021917,3]
[349513732,1737261041614,-500.0,0.00021917,3]
[349513733,1737261041624,-500.0,0.00021917,3]
[349513734,1737261041634,-500.0,0.00021917,3]
[349513735,1737261041643,-495.0,0.00021917,3]
[349513736,1737261041653,-500.0,0.00021917,3]
[349513737,1737261041664,-500.0,0.00021917,3]
[349513738,1737261041674,-500.0,0.00021917,3]
[349513739,1737261041683,-526.94,0.00021917,3]
[349513740,1737261041692,-630.2,0.00021917,3]
[349513741,1737261041702,-5789.0,0.00021917,3]
[349513742,1737261041711,-500.0,0.00021917,3]
[349513743,1737261041721,-168.22703687,0.00021917,3]
[349513744,1737261041730,-517.51477687,0.00021917,3]
[349513745,1737261041739,-500.0,0.00021917,3]
[349513746,1737261041749,-500.0,0.00021917,3]
[349513747,1737261041758,-500.0,0.00021917,3]
[349513748,1737261041767,-500.0,0.00021917,3]
[349513749,1737261041777,-500.0,0.00021917,3]
[349513750,1737261041786,-500.0,0.00021917,3]
[349513751,1737261041795,-500.0,0.00021917,3]
[349513752,1737261041804,-569.28,0.00021917,3]
[349513753,1737261041813,-500.0,0.00021917,3]
[349513754,1737261041822,-500.0,0.00021917,3]
[349513755,1737261041831,-500.0,0.00021917,3]
[349513756,1737261041840,-500.0,0.00021917,3]
[349513757,1737261041849,-500.0,0.00021917,3]
[349513758,1737261041858,-500.0,0.00021917,3]
[349513759,1737261041868,-500.0,0.00021917,3]
[349513760,1737261041877,-500.0,0.00021917,3]
[349513761,1737261041887,-407.31,0.00021917,3]
[349513762,1737261041896,-500.0,0.00021917,3]
[349513763,1737261041905,-500.0,0.00021917,3]
[349513764,1737261041915,-6202.13,0.00021917,3]
[349513765,1737261041924,-1581.49,0.00021917,3]
[349513766,1737261041934,-184.38,0.00021917,3]
[349513767,1737261041943,-230.46,0.00021917,3]
[349513768,1737261041952,-237.69,0.00021917,3]
[349513769,1737261041962,-500.0,0.00021917,3]
[349513770,1737261041971,-500.0,0.00021917,3]
[349513771,1737261041980,-500.0,0.00021917,3]
[349513772,1737261041989,-500.0,0.00021973,2]
[349513773,1737261041999,-3000.0,0.00022,3]
[349513774,1737261042007,-184.7,0.00022054,3]
[349513775,1737261042016,-500.0,0.00022054,3]
[349513776,1737261042026,-451.11,0.00022054,3]
[349513777,1737261042035,-500.0,0.00022054,3]
[349513778,1737261042044,-500.0,0.00022054,3]
[349513779,1737261042053,-500.0,0.00022054,3]
[349513780,1737261042063,-500.0,0.00022054,3]
[349513781,1737261042072,-500.0,0.00022054,3]
[349513782,1737261042080,-500.0,0.00022054,3]
[349513783,1737261042089,-500.0,0.00022054,3]
[349513784,1737261042098,-348.13,0.00022054,3]
[349513785,1737261042108,-268.46,0.00022054,3]
[349513786,1737261042117,-206.68,0.00022054,3]
[349513787,1737261042126,-500.0,0.00022054,3]
[349513788,1737261042134,-500.0,0.00022054,3]
[349513789,1737261042143,-195.63938655,0.00022054,3]
[349513846,1737261046782,-509.65,0.00021917,3]
[349513847,1737261046792,-1258.59,0.00021917,3]
[349513848,1737261046802,-61.87061345,0.00022054,3]
[349513849,1737261046812,-500.0,0.00022054,3]
[349513850,1737261046821,-623.13,0.00022054,3]
[349513851,1737261046831,-500.0,0.00022054,3]
[349513852,1737261046840,-341.44,0.00022054,3]
[349513853,1737261046849,-151.0,0.00022054,7]
[349513854,1737261046858,-280.02,0.00022054,3]
[349513855,1737261046868,-416.03,0.00022054,3]
[349513856,1737261046877,-151.814607,0.00022054,7]
[349513857,1737261046886,-151.0,0.00022054,7]
[349513858,1737261046896,-500.0,0.00022054,3]
[349513859,1737261046905,-684.72,0.00022054,3]
[349513860,1737261046917,-151.0,0.00022054,7]
[349513861,1737261046926,-500.0,0.00022054,3]
[349513862,1737261046935,-2058.98,0.00022054,3]
[349513863,1737261046945,-151.0,0.00022054,7]
[349513864,1737261046954,-500.0,0.00022054,3]
[349513865,1737261046963,-500.0,0.00022054,3]
[349513866,1737261046973,-500.0,0.00022054,3]
[349513867,1737261046982,-432.98,0.00022054,3]
[349513868,1737261046992,-151.0,0.00022054,7]
[349513869,1737261047001,-580.8,0.00022054,3]
[349513870,1737261047010,-500.0,0.00022054,3]
[349513871,1737261047020,-440.07,0.00022054,3]
[349513872,1737261047029,-518.64,0.00022054,3]
[349513873,1737261047038,-500.0,0.00022054,3]
[349513874,1737261047048,-500.0,0.00022054,3]
[349513875,1737261047058,-500.0,0.00022054,3]
[349513876,1737261047067,-500.0,0.00022054,3]
[349513877,1737261047208,-500.0,0.00022054,3]
[349513878,1737261047218,-151.0,0.00022054,7]
[349513879,1737261047227,-151.0,0.00022054,7]
[349513880,1737261047237,-5789.0,0.00022054,3]
[349513881,1737261047246,-500.0,0.00022054,3]
[349513882,1737261047255,-151.0,0.00022054,7]
[349513883,1737261047264,-500.0,0.00022054,3]
[349513884,1737261047273,-500.0,0.00022054,3]
[349513885,1737261047282,-500.0,0.00022054,3]
[349513886,1737261047291,-500.0,0.00022054,3]
[349513887,1737261047300,-500.0,0.00022054,3]
[349513888,1737261047309,-500.0,0.00022054,3]
[349513889,1737261047319,-500.0,0.00022054,3]
[349513890,1737261047328,-152.342939,0.00022054,7]
[349513891,1737261047337,-649.72,0.00022054,3]
[349513892,1737261047346,-157.708913,0.00022054,7]
[349513893,1737261047355,-500.0,0.00022054,3]
[349513894,1737261047365,-162.564096,0.00022054,7]
[349513895,1737261047374,-388.07,0.00022054,3]
[349513896,1737261047383,-152.079119,0.00022054,7]
[349513897,1737261047396,-500.0,0.00022054,3]
[349513898,1737261047405,-151.0,0.00022054,7]
[349513899,1737261047416,-500.0,0.00022054,3]
[349513900,1737261047425,-500.0,0.00022054,3]
[349513901,1737261047434,-500.0,0.00022054,3]
[349513902,1737261047443,-6202.13,0.00022054,3]
[349513903,1737261047452,-154.502063,0.00022054,7]
[349513904,1737261047460,-1581.49,0.00022054,3]
[349513905,1737261047472,-189.694928,0.00022054,7]
[349513906,1737261047481,-151.0,0.00022054,7]
[349513907,1737261047491,-524.72,0.00022054,3]
[349513908,1737261047499,-151.0,0.00022054,7]
[349513909,1737261047508,-500.0,0.00022054,3]
[349513910,1737261047517,-164.304526,0.00022054,7]
[349513911,1737261047527,-151.0,0.00022054,7]
[349513912,1737261047536,-154.001899,0.00022054,7]
[349513913,1737261047546,-151.0,0.00022054,7]
[349513914,1737261047555,-509.65,0.00022054,3]
[349513915,1737261047565,-1258.59,0.00022054,3]
[349513916,1737261047574,-152.304073,0.00022191,7]
[349513917,1737261047585,-270.051577,0.00022191,7]
[349513918,1737261047595,-348.38,0.00022191,3]
[349513919,1737261047604,-151.0,0.00022191,7]
[349513920,1737261047615,-155.274271,0.00022191,7]
[349513921,1737261047632,-151.0,0.00022191,7]
[349513922,1737261047641,-151.0,0.00022191,7]
[349513923,1737261047652,-500.0,0.00022191,3]
[349513924,1737261047661,-605.56,0.00022191,3]
[349513925,1737261047673,-500.0,0.00022191,3]
[349513926,1737261047682,-178.9,0.00022191,3]
[349513927,1737261047692,-626.48,0.00022191,3]
[349513928,1737261047702,-254.2,0.00022191,3]
[349513929,1737261047711,-248.27,0.00022191,3]
[349513930,1737261047720,-160.044729,0.00022191,7]
[349513931,1737261047731,-151.652202,0.00022191,7]
[349513932,1737261047742,-500.0,0.00022191,3]
[349513933,1737261047752,-500.0,0.00022191,3]
[349513934,1737261047762,-151.0,0.00022191,7]
[349513935,1737261047773,-152.329749,0.00022191,7]
[349513936,1737261047783,-153.40097,0.00022191,7]
[349513937,1737261047792,-623.35,0.00022191,3]
[349513938,1737261047802,-164.420214,0.00022191,7]
[349513939,1737261047811,-155.399152,0.00022191,7]
[349513940,1737261047821,-151.0,0.00022191,7]
[349513941,1737261047830,-151.187869,0.00022191,7]
[349513942,1737261047839,-151.0,0.00022191,7]
[349513943,1737261047849,-152.130844,0.00022191,7]
[349513944,1737261047859,-157.351518,0.00022191,7]
[349513945,1737261047868,-638.21,0.00022191,3]
[349513946,1737261047878,-178.941657,0.00022191,7]
[349513947,1737261047887,-500.0,0.00022191,3]
[349513948,1737261047897,-684.72,0.00022191,3]
[349513949,1737261047906,-151.0,0.00022191,7]
[349513950,1737261047915,-500.0,0.00022191,3]
[349513951,1737261047925,-2058.98,0.00022191,3]
[349513952,1737261047934,-160.36577,0.00022191,7]
[349513953,1737261047943,-509.94,0.00022191,3]
[349513954,1737261047953,-500.0,0.00022191,3]
[349513955,1737261047962,-500.0,0.00022191,3]
[349513956,1737261047971,-163.260922,0.00022191,7]
[349513957,1737261047981,-627.41,0.00022191,3]
[349513958,1737261047991,-447.27345454,0.00022191,3]
[349513959,1737261048000,-373.64,0.00022191,3]
[349513960,1737261048010,-364.98,0.00022191,3]
[349513961,1737261048019,-500.0,0.00022191,3]
[349513962,1737261048028,-500.0,0.00022191,3]
[349513963,1737261048037,-151.0,0.00022191,7]
[349513964,1737261048046,-157.204253,0.00022191,7]
[349513965,1737261048056,-5789.0,0.00022191,3]
[349513966,1737261048065,-500.0,0.00022191,3]
[349513967,1737261048075,-500.0,0.00022191,3]
[349513968,1737261048084,-500.0,0.00022191,3]
[349513969,1737261048093,-500.0,0.00022191,3]
[349513970,1737261048102,-318.58,0.00022191,3]
[349513971,1737261048111,-252.47,0.00022191,3]
[349513972,1737261048120,-500.0,0.00022191,3]
[349513973,1737261048129,-202.7,0.00022191,3]
[349513974,1737261048138,-500.0,0.00022191,3]
[349513975,1737261048148,-500.0,0.00022191,3]
[349513976,1737261048157,-500.0,0.00022191,3]
[349513977,1737261048167,-271.82,0.00022191,3]
[349513978,1737261048176,-500.0,0.00022191,3]
[349513979,1737261048185,-6202.13,0.00022191,3]
[349513980,1737261048195,-1581.49,0.00022191,3]
[349513981,1737261048204,-161.018886,0.00022191,7]
[349513982,1737261048213,-151.0,0.00022191,7]
[349513983,1737261048226,-161.66,0.00022191,3]
[349513984,1737261048235,-151.0,0.00022191,7]
[349513985,1737261048245,-151.0,0.00022191,7]
[349513986,1737261048254,-509.65,0.00022191,3]
[349513987,1737261048263,-1258.59,0.00022191,3]
[349513988,1737261048273,-500.0,0.00022313,2]
[349513989,1737261048283,-501.02604644,0.00022313,2]
[349513990,1737261048292,-500.0,0.00022318,2]
[349513991,1737261048301,-500.0,0.00022318,2]
[349513992,1737261048310,-505.1176369,0.00022318,2]
[349513993,1737261048320,-500.0,0.00022318,2]
[349513994,1737261048329,-500.0,0.00022318,2]
[349513995,1737261048339,-539.41613241,0.00022318,2]
[349513996,1737261048348,-500.0,0.00022318,2]
[349513997,1737261048358,-500.0,0.00022318,2]
[349513998,1737261048367,-500.0,0.00022318,2]
[349513999,1737261048376,-500.0,0.00022318,2]
[349514000,1737261048385,-500.0,0.00022318,2]
[349514001,1737261048395,-500.0,0.00022318,2]
[349514002,1737261048407,-500.0,0.00022318,2]
[349514003,1737261048417,-500.0,0.00022318,2]
[349514004,1737261048426,-500.0,0.00022318,2]
[349514005,1737261048436,-500.0,0.00022318,2]
[349514006,1737261048445,-500.0,0.00022318,2]
[349514007,1737261048455,-500.0,0.00022318,2]
[349514008,1737261048464,-500.0,0.00022318,2]
[349514009,1737261048474,-500.0,0.00022318,2]
[349514010,1737261048484,-500.0,0.00022318,2]
[349514011,1737261048493,-430.30379803,0.00022318,2]
[349514012,1737261048502,-375.42186372,0.00022318,2]
[349514013,1737261048512,-500.0,0.00022318,2]
[349514014,1737261048522,-500.0,0.00022318,2]
[349514015,1737261048532,-500.0,0.00022318,2]
[349514016,1737261048542,-500.0,0.00022318,2]
[349514017,1737261048552,-500.0,0.00022318,2]
[349514018,1737261048561,-500.0,0.00022318,2]
[349514019,1737261048571,-500.0,0.00022318,2]
[349514020,1737261048580,-500.0,0.00022318,2]
[349514021,1737261048590,-500.0,0.00022318,2]
[349514022,1737261048600,-500.0,0.00022318,2]
[349514023,1737261048610,-500.0,0.00022318,2]
[349514024,1737261048619,-500.0,0.00022318,2]
[349514025,1737261048629,-500.0,0.00022318,2]
[349514026,1737261048639,-500.0,0.00022318,2]
[349514027,1737261048648,-233.20544269,0.00022318,2]
[349514034,1737261495915,3130.0,0.00024,120]
[349514035,1737261638241,157.726841,0.00013973,2]
[349514036,1737261862888,1642.12756115,0.00024,120]
[349514037,1737261967804,150.099,0.00024,120]
[349514038,1737262019133,-200.13636865,0.00018915,2]
[349514050,1737262231848,-504.32939025,0.00018354,2]
[349514051,1737262232009,-4495.67060975,0.00018354,2]
[349514052,1737262232019,-5000.0,0.00018539,2]
[349514053,1737262232029,-485.47354115,0.0002018,2]
[349514054,1737262232038,-274.078232,0.00020642,2]
[349514055,1737262232048,-157.726841,0.00020807,2]
[349514056,1737262232058,-266.5495878,0.000214,2]
[349514057,1737262232067,-3000.0,0.000215,3]
[349514058,1737262232077,-10162.3637343,0.00021517,2]
[349514094,1737262237852,-2782.88588301,0.00021517,2]
[349514096,1737262237862,-158.50007166,0.000217,2]
[349514098,1737262237872,-12945.24961731,0.00021718,2]
[349514100,1737262237883,-154.41,0.00021817,2]
[349514102,1737262237893,-171.695,0.00021817,2]
[349514104,1737262237903,-167.89585604,0.00021817,2]
[349514106,1737262237914,-263.76374331,0.000219,2]
[349514108,1737262237924,-241.60310921,0.000219,3]
[349514110,1737262237933,-500.0,0.00021917,3]
[349514112,1737262237943,-539.33285964,0.00021917,3]
[349514115,1737262237957,-500.0,0.00021917,3]
[349514117,1737262237967,-500.0,0.00021917,3]
[349514119,1737262237976,-500.0,0.00021917,3]
[349514121,1737262237986,-500.0,0.00021917,3]
[349514123,1737262237995,-500.0,0.00021917,3]
[349514125,1737262238005,-500.0,0.00021917,3]
[349514127,1737262238014,-500.0,0.00021917,3]
[349514129,1737262238023,-528.69115678,0.00021917,3]
[349514131,1737262238033,-500.0,0.00021917,3]
[349514133,1737262238042,-500.0,0.00021917,3]
[349514135,1737262238052,-500.62389333,0.00021917,3]
[349514137,1737262238062,-500.0,0.00021917,3]
[349514139,1737262238071,-500.0,0.00021917,3]
[349514142,1737262238084,-500.0,0.00021917,3]
[349514144,1737262238093,-500.0,0.00021917,3]
[349514146,1737262238102,-500.0,0.00021917,3]
[349514148,1737262238111,-500.0,0.00021917,3]
[349514150,1737262238121,-500.0,0.00021917,3]
[349514152,1737262238133,-500.0,0.00021917,3]
[349514154,1737262238146,-500.0,0.00021917,3]
[349514156,1737262238155,-500.0,0.00021917,3]
[349514158,1737262238164,-500.0,0.00021917,3]
[349514160,1737262238174,-500.0,0.00021917,3]
[349514162,1737262238183,-500.0,0.00021917,3]
[349514164,1737262238193,-500.0,0.00021917,3]
[349514166,1737262238202,-500.0,0.00021917,3]
[349514168,1737262238211,-500.0,0.00021917,3]
[349514170,1737262238220,-500.0,0.00021917,3]
[349514172,1737262238229,-500.0,0.00021917,3]
[349514173,1737262238238,-500.0,0.00021917,3]
[349514176,1737262238248,-500.0,0.00021917,3]
[349514178,1737262238258,-500.0,0.00021917,3]
[349514180,1737262238267,-500.0,0.00021917,3]
[349514182,1737262238276,-311.39618121,0.00021917,3]
[349514184,1737262238285,-500.0,0.00021917,3]
[349514186,1737262238295,-500.0,0.00021917,3]
[349514188,1737262238304,-151.0,0.00021917,2]
[349514190,1737262238313,-500.0,0.00021917,3]
[349514192,1737262238323,-500.0,0.00021917,3]
[349514194,1737262238332,-500.0,0.00021917,3]
[349514196,1737262238341,-500.0,0.00021917,3]
[349514198,1737262238351,-500.0,0.00021917,3]
[349514200,1737262238361,-500.0,0.00021917,3]
[349514202,1737262238370,-500.0,0.00021917,3]
[349514204,1737262238380,-500.0,0.00021917,3]
[349514206,1737262238390,-500.0,0.00021917,3]
[349514208,1737262238400,-500.0,0.00021917,3]
[349514210,1737262238409,-500.0,0.00021917,3]
[349514212,1737262238418,-500.0,0.00021917,3]
[349514214,1737262238428,-500.0,0.00021917,3]
[349514216,1737262238437,-500.0,0.00021917,3]
[349514218,1737262238446,-500.0,0.00021917,3]
[349514220,1737262238455,-500.0,0.00021917,3]
[349514222,1737262238465,-500.0,0.00021917,3]
[349514224,1737262238474,-500.0,0.00021917,3]
[349514226,1737262238484,-500.0,0.00021917,3]
[349514228,1737262238493,-500.0,0.00021917,3]
[349514230,1737262238502,-500.0,0.00021917,3]
[349514232,1737262238512,-500.0,0.00021917,3]
[349514234,1737262238522,-500.0,0.00021917,3]
[349514236,1737262238531,-500.0,0.00021917,3]
[349514238,1737262238541,-500.0,0.00021917,3]
[349514240,1737262238550,-500.0,0.00021917,3]
[349514242,1737262238560,-500.0,0.00021917,3]
[349514244,1737262238570,-500.0,0.00021917,3]
[349514246,1737262238579,-500.0,0.00021917,3]
[349514248,1737262238589,-500.0,0.00021917,3]
[349514250,1737262238598,-500.0,0.00021917,3]
[349514252,1737262238607,-500.0,0.00021917,3]
[349514254,1737262238617,-500.0,0.00021917,3]
[349514256,1737262238627,-500.0,0.00021917,3]
[349514258,1737262238639,-500.0,0.00021917,3]
[349514261,1737262238649,-500.0,0.00021917,3]
[349514263,1737262238659,-500.0,0.00021917,3]
[349514265,1737262238668,-500.0,0.00021917,3]
[349514266,1737262238678,-500.0,0.00021917,3]
[349514268,1737262238688,-500.0,0.00021917,3]
[349514269,1737262238697,-500.0,0.00021917,3]
[349514270,1737262238707,-500.0,0.00021917,3]
[349514271,1737262238716,-500.0,0.00021917,3]
[349514272,1737262238726,-508.49023953,0.00021917,3]
[349514273,1737262238735,-500.0,0.00021917,3]
[349514274,1737262238747,-500.0,0.00021917,3]
[349514275,1737262238758,-500.0,0.00021917,3]
[349514276,1737262238767,-500.0,0.00021917,3]
[349514277,1737262238777,-500.0,0.00021917,3]
[349514278,1737262238787,-500.0,0.00021917,3]
[349514279,1737262238796,-500.0,0.00021917,3]
[349514280,1737262238815,-500.0,0.00021917,3]
[349514281,1737262238827,-500.0,0.00021917,3]
[349514282,1737262238837,-500.0,0.00021917,3]
[349514283,1737262238847,-500.0,0.00021917,3]
[349514284,1737262238858,-500.0,0.00021917,3]
[349514285,1737262238868,-500.0,0.00021917,3]
[349514286,1737262238877,-500.0,0.00021917,3]
[349514287,1737262238890,-500.0,0.00021917,3]
[349514288,1737262238900,-500.0,0.00021917,3]
[349514289,1737262238910,-500.0,0.00021917,3]
[349514290,1737262238920,-500.0,0.00021917,3]
[349514291,1737262238930,-500.0,0.00021917,3]
[349514292,1737262238939,-500.0,0.00021917,3]
[349514293,1737262238949,-500.0,0.00021917,3]
[349514294,1737262238959,-500.0,0.00021917,2]
[349514295,1737262238968,-500.0,0.00021917,3]
[349514296,1737262238978,-500.0,0.00021917,3]
[349514297,1737262238987,-396.12856023,0.00021917,3]
[349514298,1737262238997,-500.0,0.00021917,3]
[349514299,1737262239008,-500.0,0.00021917,3]
[349514300,1737262239018,-500.0,0.00021917,3]
[349514301,1737262239028,-500.0,0.00021917,3]
[349514302,1737262239037,-500.0,0.00021917,3]
[349514303,1737262239047,-500.0,0.00021917,3]
[349514304,1737262239057,-500.0,0.00021917,3]
[349514305,1737262239066,-500.0,0.00021917,3]
[349514306,1737262239076,-500.0,0.00021917,3]
[349514307,1737262239085,-500.0,0.00021917,3]
[349514308,1737262239095,-500.0,0.00021917,3]
[349514309,1737262239105,-500.0,0.00021917,3]
[349514310,1737262239115,-500.0,0.00021917,3]
[349514311,1737262239124,-500.0,0.00021917,3]
[349514312,1737262239137,-500.0,0.00021917,3]
[349514313,1737262239147,-686.31,0.00021917,3]
[349514314,1737262239157,-500.0,0.00021917,3]
[349514315,1737262239166,-500.0,0.00021917,3]
[349514316,1737262239176,-500.0,0.00021917,3]
[349514317,1737262239186,-151.0,0.00021917,2]
[349514318,1737262239195,-500.0,0.00021917,3]
[349514319,1737262239205,-500.0,0.00021917,3]
[349514320,1737262239215,-500.0,0.00021917,3]
[349514321,1737262239224,-500.0,0.00021917,3]
[349514322,1737262239234,-2949.21,0.00021917,3]
[349514323,1737262239243,-988.31,0.00021917,3]
[349514324,1737262239253,-500.0,0.00021917,3]
[349514325,1737262239263,-500.0,0.00021917,3]
[349514326,1737262239272,-500.0,0.00021917,3]
[349514327,1737262239282,-500.0,0.00021917,3]
[349514328,1737262239291,-2509.79,0.00021917,3]
[349514329,1737262239301,-500.0,0.00021917,3]
[349514330,1737262239310,-500.0,0.00021917,3]
[349514331,1737262239319,-500.0,0.00021917,3]
[349514332,1737262239329,-500.0,0.00021917,3]
[349514333,1737262239338,-500.0,0.00021917,3]
[349514334,1737262239348,-10777.99,0.00021917,3]
[349514335,1737262239358,-500.0,0.00021917,3]
[349514336,1737262239368,-500.0,0.00021917,3]
[349514337,1737262239377,-500.0,0.00021917,3]
[349514338,1737262239393,-500.0,0.00021917,3]
[349514339,1737262239404,-500.0,0.00021917,3]
[349514340,1737262239414,-500.0,0.00021917,3]
[349514341,1737262239424,-1197.29,0.00021917,3]
[349514342,1737262239433,-500.0,0.00021917,3]
[349514344,1737262239443,-731.61,0.00021917,3]
[349514345,1737262239453,-500.0,0.00021917,3]
[349514346,1737262239463,-500.0,0.00021917,3]
[349514347,1737262239473,-500.0,0.00021917,3]
[349514348,1737262239483,-500.0,0.00021917,3]
[349514349,1737262239493,-500.0,0.00021917,3]
[349514350,1737262239502,-518.60221912,0.00021917,3]
[349514351,1737262239512,-500.0,0.00021917,3]
[349514352,1737262239522,-3885.22,0.00021917,3]
[349514353,1737262239531,-500.0,0.00021917,3]
[349514354,1737262239541,-500.0,0.00021917,3]
[349514356,1737262239551,-500.0,0.00021917,3]
[349514358,1737262239560,-500.0,0.00021917,3]
[349514360,1737262239569,-500.0,0.00021917,3]
[349514362,1737262239579,-500.0,0.00021917,3]
[349514363,1737262239588,-500.0,0.00021917,3]
[349514364,1737262239598,-500.0,0.00021917,3]
[349514366,1737262239607,-500.0,0.00021917,3]
[349514368,1737262239617,-500.0,0.00021917,3]
[349514369,1737262239626,-500.0,0.00021917,3]
[349514370,1737262239640,-500.0,0.00021917,3]
[349514371,1737262239650,-500.0,0.00021917,3]
[349514373,1737262239659,-500.0,0.00021917,3]
[349514375,1737262239668,-500.0,0.00021917,3]
[349514376,1737262239678,-500.0,0.00021917,3]
[349514378,1737262239687,-958.39,0.00021917,3]
[349514380,1737262239696,-500.0,0.00021917,3]
[349514381,1737262239705,-500.0,0.00021917,3]
[349514382,1737262239715,-500.0,0.00021917,3]
[349514383,1737262239724,-500.0,0.00021917,3]
[349514384,1737262239733,-500.0,0.00021917,3]
[349514385,1737262239743,-500.0,0.00021917,3]
[349514386,1737262239756,-500.0,0.00021917,3]
[349514387,1737262239765,-151.0,0.00021917,2]
[349514388,1737262239774,-500.0,0.00021917,3]
[349514389,1737262239783,-500.0,0.00021917,3]
[349514390,1737262239793,-500.0,0.00021917,3]
[349514391,1737262239803,-500.0,0.00021917,3]
[349514393,1737262239926,-500.0,0.00021917,3]
[349514394,1737262239936,-500.0,0.00021917,3]
[349514395,1737262239945,-500.0,0.00021917,3]
[349514396,1737262239954,-500.0,0.00021917,3]
[349514397,1737262239962,-500.0,0.00021917,3]
[349514398,1737262239971,-500.0,0.00021917,3]